Cogmind - Beta 14 @@@ ROGUE MODE // 2024.09.06 @ 01:54:05 Player: Cereal Killer Result: Destroyed by G-67 Veteran with Field Laser Performance ------------- Evolutions (6) 3000 Regions Visited (32) 6400 Robots Destroyed (324) 1620 Value Destroyed (15344) 15344 Prototype IDs (50) 1000 Alien Tech Used (2) 400 Bonus (7118) 7118 TOTAL SCORE: 34882 Bonus ------- High Alert Combat Kills 3701 Follower Combat Kills 2686 Entered Garrisons 600 Network Hubs Disabled 200 Met Data Miner 300 Acquired ECA 300 Met Zhirov 300 Met Warlord at Base 500 MAIN.C Attacked Warlord 500 Warlord Defense Kills 978 Built Enhanced Grunts 300 A7 Reached Mainframe 300 Met R17 at Cetus 500 Friendly Fire -4047 Cogmind --------- Core Integrity 0/1150 Matter 116/300 Energy 98/100 System Corruption 11% Temperature Cool (9) Movement Hovering (38) Location -3/Proximity Caves Parts ------- > --- POWER (2) -------- (None) > --- PROPULSION (2) --- Cooled Gravmag System Cooled Gravmag System > --- UTILITY (9) ------ Advanced Cryofiber Web Advanced Signal Interpreter Encrypted Comm Array 0b10 Decoder Chip [Skirmisher] Experimental Core Shielding Layered Medium Armor Plating Layered Medium Armor Plating Improved Hacking Suite > --- WEAPON (6) ------- Plasma Rifle Makeshift Shrapnel Gun > --- INVENTORY (5) ---- Heavy Antimatter Reactor Advanced Hacking Suite Improved Remote Datajack Peak State ------------ > --- POWER ------------ Vortex Chain Reactor > --- PROPULSION ------- Wheel Compact Wheel > --- UTILITY ---------- Improved Cooling System Improved Cooling System High-capacity Storage Unit Long-range Terrain Scanner Core Analyzer Improved Weapon Cycler Improved Heavy Armor Plating Thermal Barrier > --- WEAPON ----------- BFG-9k Vortex Edition > --- INVENTORY -------- Neutrino Core Micro Fission Core Advanced Cryofiber Web Advanced Cooling System Large Battery High-capacity Matter Pod Encrypted Comm Array 0b10 Decoder Chip [Skirmisher] Advanced Variable Charge Gun Vortex Rifle Vortex Shotgun Advanced KE Penetrator Hypervelocity Mass Driver Heavy Shock Bomb Launcher [Rating: 154] Favorites ----------- Power Neutrino Core Engine Improved Deuterium Engine Power Core Neutrino Core Reactor Vortex Chain Reactor Propulsion Armored Huge Wheel Treads Improved Treads Wheel Armored Huge Wheel Hover Unit Improved Antigrav System Flight Unit Makeshift Flight Unit Utility High-capacity Storage Unit Device Improved Cooling System Storage High-capacity Storage Unit Processor Core Analyzer Hackware Improved Hacking Suite Protection Medium Reactive Plating Weapon Cooled Pulse Rifle Energy Gun Cooled Pulse Rifle Energy Cannon Heavy Plasma Cannon Ballistic Gun Advanced KE Penetrator Ballistic Cannon Magnetic Acceleration Cannon Launcher Grenade Launcher Impact Weapon Heavy Flail Slashing Weapon Great Axe Build | -11 -10 -10 -10 -9 -8 -8 -8 -8 -8 -8 -8 -8 -7 -7 -7 -7 -6 -6 -6 -6 -6 -6 -5 -5 -5 -5 -4 -4 -4 -4 -4 -3 ------- Run | Yrd Mat Min Exi Min Mat Gar Mat Gar Mat Gar Mat Sto Fac Low Low Dat Pro Fac Ext Cet Arc Hub Fac Upp Upp War Pro Fac Upp Upp Zhi Pro Slots Evolved 12 | . . . . . 4 . . . . . . . 2 . . . . 2 . . . . 2 . . . . 2 . . . . Power 1 | . . . . . . . . . . . . . . . . . . . . . . . 1 . . . . . . . . . Propulsion . | . . . . . . . . . . . . . . . . . . . . . . . . . . . . . . . . . Utility 7 | . . . . . 3 . . . . . . . 2 . . . . 1 . . . . 1 . . . . . . . . . Weapon 4 | . . . . . 1 . . . . . . . . . . . . 1 . . . . . . . . . 2 . . . . Parts Attached 274 | 6 12 . 1 3 12 12 6 29 2 5 6 10 17 . 6 3 2 8 6 9 . 10 16 1 3 8 . 50 5 11 12 3 Power 23 | 1 1 . . . 1 2 1 2 . . . 1 2 . . . . . 2 1 . . 2 1 . 1 . 4 . . 1 . Engine 9 | 1 1 . . . 1 2 . 1 . . . 1 1 . . . . . 1 . . . . . . . . . . . . . Core 11 | . . . . . . . 1 1 . . . . 1 . . . . . 1 . . . 2 1 . . . 4 . . . . Reactor 3 | . . . . . . . . . . . . . . . . . . . . 1 . . . . . 1 . . . . 1 . Propulsion 24 | 2 2 . . . . 2 1 3 1 . 1 . . . . . . . . . . . 2 . . 1 . 5 1 . 2 1 Treads 1 | . . . . . . . . . . . . . . . . . . . . . . . . . . . . 1 . . . . Leg . | . . . . . . . . . . . . . . . . . . . . . . . . . . . . . . . . . Wheel 18 | 2 2 . . . . 2 1 3 1 . 1 . . . . . . . . . . . 2 . . 1 . 3 . . . . Hover 4 | . . . . . . . . . . . . . . . . . . . . . . . . . . . . 1 . . 2 1 Flight 1 | . . . . . . . . . . . . . . . . . . . . . . . . . . . . . 1 . . . Utility 106 | 1 3 . 1 1 4 2 3 9 1 1 1 2 10 . 5 . . 6 4 5 . 5 9 . 1 3 . 16 3 5 3 2 Device 60 | . . . . 1 1 . 1 6 . 1 1 1 4 . 2 . . 6 2 2 . 5 7 . 1 3 . 11 3 . 1 1 Storage 6 | 1 2 . 1 . . . . . . . . . . . . . . . 1 . . . . . . . . 1 . . . . Processor 7 | . . . . . 1 . . . . . . . 2 . . . . . . 1 . . . . . . . 2 . 1 . . Hackware 1 | . . . . . . . . . . . . . . . . . . . . . . . . . . . . . . . 1 . Protection 32 | . 1 . . . 2 2 2 3 1 . . 1 4 . 3 . . . 1 2 . . 2 . . . . 2 . 4 1 1 Artifact . | . . . . . . . . . . . . . . . . . . . . . . . . . . . . . . . . . Weapon 121 | 2 6 . . 2 7 6 1 15 . 4 4 7 5 . 1 3 2 2 . 3 . 5 3 . 2 3 . 25 1 6 6 . Energy Gun 40 | 1 1 . . . 6 . . . . . . 1 4 . . 2 . . . 2 . 2 1 . . 3 . 15 1 . 1 . Energy Cannon 9 | . . . . . . . . . . . 2 . . . . . . 2 . . . 2 . . . . . 3 . . . . Ballistic Gun 30 | 1 2 . . . 1 3 1 4 . . . . . . . . . . . 1 . . 2 . 1 . . 3 . 6 5 . Ballistic Cannon 17 | . . . . . . . . 4 . 1 1 4 . . 1 1 1 . . . . . . . 1 . . 3 . . . . Launcher 18 | . 3 . . 2 . 3 . 2 . 2 1 2 . . . . 1 . . . . 1 . . . . . 1 . . . . Special Weapon . | . . . . . . . . . . . . . . . . . . . . . . . . . . . . . . . . . Impact Weapon 4 | . . . . . . . . 4 . . . . . . . . . . . . . . . . . . . . . . . . Slashing Weapon 3 | . . . . . . . . 1 . 1 . . 1 . . . . . . . . . . . . . . . . . . . Piercing Weapon . | . . . . . . . . . . . . . . . . . . . . . . . . . . . . . . . . . Special Melee Weapon . | . . . . . . . . . . . . . . . . . . . . . . . . . . . . . . . . . Unidentified Prototypes 26 | . . . . . 1 . . . . . 2 1 2 . 1 . . . . 3 . 1 1 . . 5 . 3 . . 5 1 Corrupted Parts 3 | . . . . 2 . . . . . . . . . . . . . . . . . . . . . . . 1 . . . . System Corruption 9 | . . . . 8 . . . . . . . . . . . . . . . . . . . . . . . 1 . . . . Parts Lost 78 | . 3 . . . 1 8 1 6 . 1 . 3 6 . . . 1 . 1 . . 7 5 . 2 2 . 29 . 2 . . Power 9 | . 1 . . . . 2 . . . . . . 2 . . . . . . . . . 1 . . . . 3 . . . . Propulsion 12 | . 2 . . . . 2 . 2 . . . . . . . . . . . . . . 1 . . 1 . 4 . . . . Utility 29 | . . . . . . . 1 2 . 1 . 2 4 . . . . . 1 . . 4 1 . 1 . . 11 . 1 . . Weapon 28 | . . . . . 1 4 . 2 . . . 1 . . . . 1 . . . . 3 2 . 1 1 . 11 . 1 . . Highest Loss Streak 20 | . 3 . . . 1 7 1 3 . 1 . 1 4 . . . 1 . 1 . . 5 3 . 2 2 . 20 . 2 . . To Critical Strikes 1 | . . . . . . . . . . . . . . . . . . . . . . . . . . . . 1 . . . . Average Slot Usage (%) 89 | . 86 100 100 100 96 91 91 97 100 99 90 89 83 84 86 73 89 91 93 93 93 87 94 94 93 87 88 77 33 74 58 88 Engine 4 | . 12 14 14 14 9 6 3 6 9 9 9 9 4 7 7 7 7 6 4 . . . . . . . . . . . . . Core 1 | . . . . . . . 5 2 . . . . . . . . . . 1 1 . . 7 11 11 6 . 1 . . . . Reactor 1 | . . . . . . . . . . . . . . . . . . . . 4 6 6 2 . . 2 5 3 . . 1 4 Wheel 10 | . 24 28 28 28 18 17 18 17 18 18 9 9 7 7 7 7 7 6 6 6 6 6 6 11 11 11 11 6 . . . . Device 15 | . . . . 6 11 9 7 13 18 17 18 17 15 7 7 7 7 19 20 20 20 15 28 23 23 27 29 19 13 10 8 6 Storage 6 | . 12 14 14 14 9 9 9 9 9 9 9 9 7 7 7 7 7 6 6 6 6 6 5 5 5 5 5 5 . . . . Processor 7 | . . . . . 6 9 9 9 9 9 9 9 8 15 12 7 7 6 6 6 6 6 5 5 5 5 5 9 5 8 10 10 Protection 13 | . 6 14 14 7 16 18 11 11 9 9 9 8 14 15 19 30 30 20 20 19 20 19 10 11 10 5 5 4 . 17 22 25 Energy Gun 9 | . 14 14 14 14 17 7 . . . . . . . 15 15 3 15 13 13 18 20 19 14 5 5 13 17 12 7 5 . 5 Energy Cannon 2 | . . . . . . . . . . . 2 3 . . . . . 11 13 7 6 5 5 5 4 . . . . . . . Ballistic Gun 4 | . 10 . . . 3 11 25 9 . . . . . . . . . . . . . . 2 11 11 6 5 7 . 20 2 21 Ballistic Cannon 5 | . . . . . . . . 14 27 20 18 20 19 . 5 1 2 . . . . . . . . . . 4 . . . . Launcher 1 | . 3 14 14 14 4 2 1 . . 1 . 2 . . . . 2 . . . . . . . . . . . . . . . Peak Build Rating 154 | 6 7 8 9 20 33 36 36 45 44 44 47 50 62 61 63 63 63 79 78 90 89 91 106 97 98 114 114 154 43 80 101 101 Average Rating 66 | 3 6 7 8 12 28 31 34 40 44 43 46 47 54 61 62 49 61 76 75 87 89 85 102 97 94 100 113 113 35 71 64 95 On Entrance 55 | . 6 7 8 9 20 33 36 35 44 44 43 46 49 61 61 63 63 58 78 77 89 89 63 97 97 81 113 114 18 38 80 101 Naked Turns 24 | . . . . . . . . . . . . . . . . . . . . . . . . . . . . 24 . . . . Heaviest Build 143 | 12 29 29 49 60 63 76 78 83 95 96 92 99 107 92 112 109 109 135 137 124 107 107 141 137 143 132 126 142 11 47 66 66 Greatest Support 32 | 26 26 20 20 20 20 32 32 28 24 24 28 28 28 28 28 28 28 28 28 28 28 28 28 28 28 28 26 28 12 12 23 32 Greatest Overweight (x) 16 | . 2 1 2 2 3 3 2 6 3 3 3 3 3 3 3 3 3 4 4 4 3 3 5 4 5 7 4 16 . 3 3 2 Average Overweight (x) 2 | . . 1 1 2 2 1 1 2 3 3 3 2 3 3 3 3 3 3 4 3 3 2 4 4 4 4 4 4 . 1 2 1 Largest Inventory Capacity 20 | 8 15 15 20 20 20 20 20 20 20 20 20 20 20 20 20 20 20 20 20 20 20 20 20 20 20 20 20 20 5 5 5 5 Average Capacity 18 | 6 14 15 15 20 20 20 20 20 20 20 20 20 20 20 20 20 20 20 20 20 20 20 20 20 20 20 20 19 5 5 5 5 Most Carried 20 | 5 5 7 10 19 20 20 20 20 20 20 20 20 20 20 20 20 20 20 20 20 20 20 20 20 20 20 19 20 5 5 5 5 Average Carried 17 | 1 2 6 7 17 17 18 19 18 19 19 19 19 18 19 19 20 20 19 19 19 20 19 13 19 19 19 18 18 4 5 4 4 Final Capacity 20 | 8 15 15 20 20 20 20 20 20 20 20 20 20 20 20 20 20 20 20 20 20 20 20 20 20 20 20 20 5 5 5 5 5 Final Carried 20 | 1 5 7 10 19 20 19 20 20 20 19 20 17 18 20 20 20 20 20 20 20 20 19 19 20 20 18 19 3 5 5 5 3 Class Distribution -------------------- 23% | Mutant 19% | Scavenger-Tank 18% | Tank 12% | Commander-Tank 9% | Gunner 6% | Scavenger-Executioner 3% | Scavenger-Gunner 3% | Derelict-Executioner Dominant Class ---------------- Mutant | -10/Materials Mutant | -10/Mines Mutant | -10/Exiles Mutant | -9/Mines Scavenger-Tank | -8/Materials Tank | -8/Garrison Gunner | -8/Materials Scavenger-Gunner | -8/Garrison Gunner | -8/Materials Mutant | -8/Garrison Mutant | -8/Materials Tank | -8/Storage Tank | -7/Factory Commander-Mutant | -7/Lower Caves Commander-Tank | -7/Lower Caves Commander-Mutant | -7/Data Miner Tank | -6/Proximity Caves Tank | -6/Factory Tank | -6/Extension Commander-Tank | -6/Cetus Commander-Tank | -6/Archives Commander-Tank | -6/Hub_04(d) Scavenger-Tank | -5/Factory Scavenger-Tank | -5/Upper Caves Scavenger-Tank | -5/Upper Caves Scavenger-Tank | -5/Warlord Scavenger-Tank | -4/Proximity Caves Scavenger-Executioner | -4/Factory Mutant | -4/Upper Caves Derelict-Executioner | -4/Upper Caves Mutant | -4/Zhirov Derelict-Executioner | -3/Proximity Caves Resources | -11 -10 -10 -10 -9 -8 -8 -8 -8 -8 -8 -8 -8 -7 -7 -7 -7 -6 -6 -6 -6 -6 -6 -5 -5 -5 -5 -4 -4 -4 -4 -4 -3 ----------- Run | Yrd Mat Min Exi Min Mat Gar Mat Gar Mat Gar Mat Sto Fac Low Low Dat Pro Fac Ext Cet Arc Hub Fac Upp Upp War Pro Fac Upp Upp Zhi Pro Matter Collected 7748 | 260 170 95 50 60 57 467 355 971 239 474 173 702 587 99 102 . 189 69 61 100 10 71 353 36 78 93 66 1418 124 84 . 135 Remotely . | . . . . . . . . . . . . . . . . . . . . . . . . . . . . . . . . . Salvage Created 13111 | . 368 46 . . 3 589 355 1174 263 396 130 975 617 167 218 . 238 33 821 227 68 1277 1401 70 184 344 565 2561 . 21 . . Parts 670 | . 36 3 . . 2 45 20 71 21 38 12 61 32 8 7 . 4 1 26 6 2 34 69 4 8 15 22 123 . . . . Haulers Intercepted 11 | . 2 . . . . . . . 1 . 1 2 2 . 1 . . . . . . 2 . . . . . . . . . . Recyclers Shooed 6 | . 1 . . . . . . . . . . . . . . . . . 3 . . . 1 . . . . 1 . . . . Parts Field Recycled . | . . . . . . . . . . . . . . . . . . . . . . . . . . . . . . . . . Retrieved Matter . | . . . . . . . . . . . . . . . . . . . . . . . . . . . . . . . . . Parts Self-Destructed 62 | . . . . . . . . . . . . . . 6 14 . 4 . . . . . . 9 8 . 21 . . . . . Prevented 3 | . . . . . . . . . . . . . . . 1 . . . . . . . . 1 . . . . . 1 . . Kills | -11 -10 -10 -10 -9 -8 -8 -8 -8 -8 -8 -8 -8 -7 -7 -7 -7 -6 -6 -6 -6 -6 -6 -5 -5 -5 -5 -4 -4 -4 -4 -4 -3 ------- Run | Yrd Mat Min Exi Min Mat Gar Mat Gar Mat Gar Mat Sto Fac Low Low Dat Pro Fac Ext Cet Arc Hub Fac Upp Upp War Pro Fac Upp Upp Zhi Pro Combat Hostiles Destroyed 257 | . 14 2 . . . 24 7 31 5 16 2 27 10 4 4 . 4 . 9 3 1 5 21 1 6 7 11 42 . 1 . . Melee 5 | . . . . . . . . 2 . . . . 3 . . . . . . . . . . . . . . . . . . . Guns 104 | . 5 . . . . 11 6 14 . . . . . 4 3 . 1 . 2 . . 3 13 . 5 3 10 23 . 1 . . Cannons 79 | . . . . . . . . 13 5 12 2 10 7 . 1 . . . 6 1 1 2 8 1 1 . . 9 . . . . AOE 62 | . 9 2 . . . 13 1 2 . 4 . 17 . . . . 1 . . . . . . . . 4 1 8 . . . . Classes Destroyed 25 | . 5 . . . 1 3 . 3 2 2 . 4 1 1 . . . . 1 . . . 1 . . 1 . . . . . . Worker 10 | . 1 . . . . . . . . . 1 4 1 . . . . . . . . 1 . . . . . 2 . . . . Builder 8 | . . . . . . . . . . . . 3 1 . . . . . . . . . 1 . . . . 3 . . . . Tunneler 1 | . . . . . . . . . 1 . . . . . . . . . . . . . . . . . . . . . . . Hauler 11 | . 2 . . . . . . . 1 . 1 2 2 . 1 . . . . . . 2 . . . . . . . . . . Recycler 6 | . . . . . . . . . 1 . . 1 2 . . . . . 1 . . . 1 . . . . . . . . . Mechanic 5 | . . . . . . . . . . . . 2 . . . . . . . . . . . . . . . 3 . . . . Operator 3 | . . . . . 1 . . . . . . . . . . . . . . . . . 1 . . . . 1 . . . . Watcher 13 | . 1 . . . . . . . 1 . . . 1 . . . . 1 1 . . 1 2 . . . . 5 . . . . Swarmer 52 | . 9 . . . . 8 . 7 2 4 . 3 . 1 . . . . 1 . . . 4 . 5 . . 7 . 1 . . Cutter 2 | . . . . . . . . . . 2 . . . . . . . . . . . . . . . . . . . . . . Saboteur 4 | . . . . . . . . 3 . . . . . . . . . . . . . . . . . 1 . . . . . . Grunt 102 | . 5 2 . . . 5 5 9 . 5 . 14 6 1 3 . 2 . 6 . . 3 9 . 1 2 7 17 . . . . Brawler 8 | . . . . . . . . 2 . . . 1 . 1 . . . . . . . . . . . 2 . 2 . . . . Duelist 2 | . . . . . . . . . . . . . 1 . . . . . . . . . . . . . 1 . . . . . Protector 2 | . . . . . . . . . . . . 1 . . . . . . . . . . . . . . . 1 . . . . Sentry 38 | . . . . . . 5 2 6 3 3 2 7 1 . . . 1 . 1 . 1 . 1 . . . . 5 . . . . Demolisher 1 | . . . . . . . . . . . . 1 . . . . . . . . . . . . . . . . . . . . Specialist 1 | . . . . . . 1 . . . . . . . . . . . . . . . . . . . . . . . . . . Hunter 9 | . . . . . . . . 4 . . . . . . . . . . . . . . 5 . . . . . . . . . Programmer 17 | . . . . . . . . . . 2 . . 2 . . . 1 . . . . . 1 . . . 2 9 . . . . Heavy 1 | . . . . . . . . . . . . . . . . . . . . . . . 1 . . . . . . . . . Behemoth 3 | . . . . . . . . . . . . . . . . . . . 1 . . . . . . . 1 1 . . . . Cetus Guard 3 | . . . . . . . . . . . . . . . . . . . . 3 . . . . . . . . . . . . Enhanced Grunt 5 | . . . . . . . . . . . . . . . . . . . . . . 5 . . . . . . . . . . Lightning 2 | . . . . . . . . . . . . . . . . . . . . . . 2 . . . . . . . . . . Executioner 2 | . . . . . . . . . . . . . . . . . . . . . . . . . . 2 . . . . . . Assembled 5 | . . . . . . 5 . . . . . . . . . . . . . . . . . . . . . . . . . . Thug 4 | . . . . . . . . . . . . 1 . . 1 . . . . . . 1 . . . 1 . . . . . . Savage 2 | . . . . . . . . . . . . . . . . . 1 . 1 . . . . . . . . . . . . . Butcher 1 | . . . . . . . . . . . . . . . . . . . . . . 1 . . . . . . . . . . Guerrilla 4 | . . . . . . . . . . . . . . . . . . . . . . 4 . . . . . . . . . . Mutant 2 | . . . . . . . . . . . . . . 1 . . . . . . . . . 1 . . . . . . . . Best Kill Streak 14 | . 6 2 . . 1 14 5 6 4 3 1 11 6 2 2 . 2 1 2 2 1 4 10 1 5 4 4 8 . 1 . . Combat Bots Only 14 | . 4 2 . . . 14 5 6 3 3 1 9 4 2 2 . 2 . 2 2 1 2 7 1 5 4 4 8 . 1 . . Max Kills in Single Turn 5 | . 2 1 . . 1 3 1 2 3 2 1 3 2 1 1 . 1 1 2 1 1 5 2 1 1 5 2 4 . 1 . . Gunslinging 1 | . . . . . . . . 1 . . . . . . . . . . . . . . . . . . 1 . . . . . Exploded 4 | . 2 1 . . . 3 1 2 . 2 . 2 . . . . 1 . . . . . . . . 4 1 3 . . . . Melee 1 | . . . . . . . . 1 . . . . 1 . . . . . . . . . . . . . . . . . . . Uniques/NPCs Destroyed . | . . . . . . . . . . . . . . . . . . . . . . . . . . . . . . . . . Combat | -11 -10 -10 -10 -9 -8 -8 -8 -8 -8 -8 -8 -8 -7 -7 -7 -7 -6 -6 -6 -6 -6 -6 -5 -5 -5 -5 -4 -4 -4 -4 -4 -3 -------- Run | Yrd Mat Min Exi Min Mat Gar Mat Gar Mat Gar Mat Sto Fac Low Low Dat Pro Fac Ext Cet Arc Hub Fac Upp Upp War Pro Fac Upp Upp Zhi Pro Hostile Shots Fired 1518 | . 64 4 . . 12 102 33 152 15 31 8 70 83 9 7 . 70 20 83 5 2 38 95 4 47 40 40 406 . 43 . 35 Missed 456 | . 18 3 . . 3 22 9 44 7 7 3 24 22 3 2 . 32 8 34 . . 7 29 1 10 20 18 103 . 12 . 15 Damage Taken 16194 | . 426 10 . 58 140 1032 372 1530 117 305 58 652 992 63 83 . 306 79 429 85 47 1393 972 69 365 393 247 5111 . 443 . 417 Core 2468 | . 147 10 . . 32 135 48 171 10 18 9 30 159 22 16 . 16 8 51 . 25 285 72 . 24 17 11 1044 . 81 . 27 Absorbed by Shields 1086 | . . . . . . . . . . 97 22 50 . . . . . 25 150 85 . . 400 30 227 . . . . . . . Redirected to Shielding 275 | . 10 . . . 9 25 . . . . . . 71 7 . . 33 . 5 . . 99 . . . . . . . . . 16 Ignored by Resistances 2579 | . . . . . . . . . 29 24 12 74 34 31 . . 75 29 89 8 . . . . . 256 215 1703 . . . . Regen/Repaired (Parts) 786 | . . . . . . . . . . . . . . . . . . 77 . . . 64 . . . 77 . 568 . . . . Core Remaining (%) 61 | 100 . . . 37 . . . . . . . 17 . . . . 69 . . . . 56 . . . . 87 . . . . . Volleys Fired 656 | . 44 4 8 . 5 65 19 79 14 33 8 47 31 11 12 . 17 11 28 9 5 29 49 3 7 6 14 93 . 3 . 2 Largest 6 | . 2 2 1 . 2 3 3 3 3 3 2 3 3 2 3 . 3 4 4 4 1 4 4 4 4 4 4 6 . 2 . 6 Hottest 308 | . 80 80 50 . 89 187 87 159 159 159 106 174 159 40 93 . 93 220 220 240 90 210 270 180 180 155 175 308 . 99 . 195 Shots Fired 1808 | . 82 7 8 1 7 136 56 191 40 62 16 105 72 22 36 . 45 22 83 27 5 87 159 9 27 22 52 409 . 8 . 12 Gun 1155 | . 73 4 3 . 5 121 55 120 . . . . . 22 24 . 36 10 41 19 . 61 110 6 21 22 52 330 . 8 . 12 Cannon 584 | . . . . . . . . 67 40 55 16 91 72 . 12 . 8 12 42 8 5 21 49 3 6 . . 77 . . . . Launcher 69 | . 9 3 5 1 2 15 1 4 . 7 . 14 . . . . 1 . . . . 5 . . . . . 2 . . . . Special . | . . . . . . . . . . . . . . . . . . . . . . . . . . . . . . . . . Kinetic 891 | . 35 . . . . 67 55 187 40 55 16 80 72 . 12 . 8 . . . . . 30 4 14 6 14 182 . 4 . 10 Thermal 728 | . 38 4 3 . 5 54 . . . . . 11 . 22 24 . 36 22 83 27 5 82 129 5 13 6 10 143 . 4 . 2 Explosive 67 | . 9 3 5 1 2 15 1 4 . 7 . 14 . . . . 1 . . . . 5 . . . . . . . . . . Electromagnetic 22 | . . . . . . . . . . . . . . . . . . . . . . . . . . . . 22 . . . . Entropic 100 | . . . . . . . . . . . . . . . . . . . . . . . . . . 10 28 62 . . . . Robot Hit Streak 18 | . 11 4 . . 6 12 7 7 5 8 3 6 16 9 5 . 8 9 11 5 2 7 14 18 11 12 9 14 . 3 . 1 Robot Miss Streak 10 | . 8 1 . 1 . 9 3 5 5 6 2 8 4 2 5 . 3 1 6 1 1 4 4 1 1 4 7 6 . 3 . 10 Penetration Max 1 | . . . . . . . . . . . . . . . . . . . . . . . 1 . . 1 1 1 . . . . Secondary Targets 14 | . . . . . . 3 . 4 . . . . . 1 . . . . . . . . . . . 2 3 . . 1 . . Max Gunslinging Chain 1 | . . . . . . 1 . 1 . . . . . 1 . . . . . . . . . . . 1 1 . . 1 . . Capacitor 3 | . . . . . . . . . . . . . . . . . . . . . . . . . . . . 3 . . . . Shots Hit Robots 965 | . 44 5 . . 6 48 35 106 14 22 9 50 57 14 19 . 27 11 48 12 4 42 92 6 13 11 35 227 . 4 . 4 Core Hits 610 | . 27 5 . . 3 42 16 53 8 19 4 59 29 7 11 . 9 5 26 4 1 40 52 3 6 15 32 129 . 4 . 1 Critical Kills 23 | . . . . . . . . . . . . . . . . . . . 1 2 . . 4 . 2 2 . 12 . . . . Critical Parts Destroyed 21 | . . . . . . . 1 1 . . . . . . . . . . . . . . . . . 2 2 15 . . . . Critical Strikes 86 | . 1 . . . . 2 1 4 1 3 . 2 3 2 1 . 1 1 1 2 . 1 7 . 2 5 3 43 . . . . Burn 26 | . 1 . . . . 2 . . . . . . . 2 1 . 1 1 . . . 1 2 . . 1 1 13 . . . . Meltdown 3 | . . . . . . . . . . . . . . . . . . . 1 2 . . . . . . . . . . . . Destroy 37 | . . . . . . . 1 . . . . . . . . . . . . . . . 5 . 2 2 . 27 . . . . Blast 11 | . . . . . . . . 2 1 3 . 2 2 . . . . . . . . . . . . . . 1 . . . . Corrupt 1 | . . . . . . . . . . . . . . . . . . . . . . . . . . . . 1 . . . . Smash 1 | . . . . . . . . 1 . . . . . . . . . . . . . . . . . . . . . . . . Sever 2 | . . . . . . . . 1 . . . . 1 . . . . . . . . . . . . . . . . . . . Detonate 5 | . . . . . . . . . . . . . . . . . . . . . . . . . . 2 2 1 . . . . Melee Attacks 66 | . . . . . . . . 34 . 15 . . 16 1 . . . . . . . . . . . . . . . . . . Impact 23 | . . . . . . . . 23 . . . . . . . . . . . . . . . . . . . . . . . . Slashing 43 | . . . . . . . . 11 . 15 . . 16 1 . . . . . . . . . . . . . . . . . . Piercing . | . . . . . . . . . . . . . . . . . . . . . . . . . . . . . . . . . Sneak Attacks 4 | . . . . . . . . 1 . . . . 3 . . . . . . . . . . . . . . . . . . . Combat Hostiles 1 | . . . . . . . . 1 . . . . . . . . . . . . . . . . . . . . . . . . Follow-up Attacks . | . . . . . . . . . . . . . . . . . . . . . . . . . . . . . . . . . Damage Inflicted 37400 | . 877 177 . 59 154 1767 560 3033 507 1046 291 4242 2065 288 482 . 708 261 1437 424 155 2580 2816 161 300 1417 1657 9801 . 100 . 35 Guns 15790 | . 464 38 . . 47 854 529 925 . . . . . 288 320 . 465 133 662 118 . 916 1912 96 236 569 1335 5748 . 100 . 35 Cannons 10989 | . . . . . . . . 766 507 735 291 1397 1432 . 162 . 141 128 775 306 155 371 904 65 64 . . 2790 . . . . Explosions 8975 | . 413 139 . 59 107 913 31 329 . 311 . 2845 . . . . 102 . . . . 1293 . . . 848 322 1263 . . . . Melee 1646 | . . . . . . . . 1013 . . . . 633 . . . . . . . . . . . . . . . . . . . Ramming . | . . . . . . . . . . . . . . . . . . . . . . . . . . . . . . . . . Kinetic 11728 | . 140 . . . . 297 529 1691 507 735 291 1315 1432 . 162 . 141 . . . . . 525 77 159 186 253 3197 . 56 . 35 Thermal 12558 | . 324 38 . . 47 557 . . . . . 82 . 288 320 . 465 261 1437 424 155 1287 2291 84 141 904 522 2887 . 44 . . Explosive 5782 | . 413 139 . 59 107 913 31 329 . 311 . 2845 . . . . 102 . . . . 248 . . . . . 285 . . . . Electromagnetic 1526 | . . . . . . . . . . . . . . . . . . . . . . 1045 . . . . . 481 . . . . Impact 377 | . . . . . . . . 377 . . . . . . . . . . . . . . . . . . . . . . . . Slashing 1269 | . . . . . . . . 636 . . . . 633 . . . . . . . . . . . . . . . . . . . Piercing . | . . . . . . . . . . . . . . . . . . . . . . . . . . . . . . . . . Entropic 4160 | . . . . . . . . . . . . . . . . . . . . . . . . . . 327 882 2951 . . . . Highest Corruption 11 | . . . . 8 . . . . . 1 4 4 2 2 4 4 4 . 1 1 1 9 . . . . . 11 11 11 11 11 Average Corruption 3 | . . . . 5 . . . . . 1 1 4 1 2 2 4 4 . 1 1 1 2 . . . . . 5 11 11 11 11 Corruption Purged 1 | . . . . . . . . . . . . . . . . . . . . . . 1 . . . . . . . . . . Corruption Blocked . | . . . . . . . . . . . . . . . . . . . . . . . . . . . . . . . . . Effects 176 | . . . . 1 . . . . . 3 5 15 5 12 12 5 14 . 7 4 1 12 . . . . . 37 7 19 11 6 Message Errors 39 | . . . . . . . . . . . 1 2 2 1 6 1 3 . 2 1 . 1 . . . . . 8 1 3 4 3 Matter Fused 42 | . . . . 1 . . . . . . 2 2 . 5 . 1 6 . . . 1 2 . . . . . 11 3 5 1 2 Heat Flow Errors 17 | . . . . . . . . . . . 1 2 . 1 1 2 1 . . 1 . 1 . . . . . 2 1 3 1 . Energy Discharges 21 | . . . . . . . . . . 1 . 2 . 2 1 . 2 . . . . 2 . . . . . 5 . 4 2 . Parts Rejected 1 | . . . . . . . . . . . . . . . . . . . . . . . . . . . . 1 . . . . Parts Fused 2 | . . . . . . . . . . . . . . . . . . . . . . 2 . . . . . . . . . . Data Loss (minor) 21 | . . . . . . . . . . 1 1 2 2 1 1 1 . . 3 2 . . . . . . . 2 1 1 3 . Data Loss (major) 9 | . . . . . . . . . . . . 1 . 1 2 . . . . . . 1 . . . . . 2 . 1 . 1 Misfires 6 | . . . . . . . . . . . . . . . . . 2 . 1 . . 1 . . . . . . . 2 . . Alerts 4 | . . . . . . . . . . . . 1 . 1 1 . . . . . . . . . . . . . 1 . . . Weapon Failures 14 | . . . . . . . . . . 1 . 3 1 . . . . . 1 . . 2 . . . . . 6 . . . . Overload Shots 2 | . . . . . . . . . . . . . . . . . . . . 1 . . . . . . . 1 . . . . Overflow Damage 1967 | . . . . . . 2 . 146 12 23 . 178 100 . . . . . 13 . . 30 24 . 13 37 . 1389 . . . . Projectiles 1403 | . . . . . . . . 6 12 23 . 27 64 . . . . . 13 . . . 24 . 13 . . 1221 . . . . Explosions 389 | . . . . . . 2 . 1 . . . 151 . . . . . . . . . 30 . . . 37 . 168 . . . . Melee 175 | . . . . . . . . 139 . . . . 36 . . . . . . . . . . . . . . . . . . . Knockbacks 35 | . . . . . . . . 4 . 2 1 2 14 . . . . . . . . . . . . . . 12 . . . . Impact . | . . . . . . . . . . . . . . . . . . . . . . . . . . . . . . . . . Kinetic 32 | . . . . . . . . 4 . 2 1 2 13 . . . . . . . . . . . . . . 10 . . . . Secondary 3 | . . . . . . . . . . . . . 1 . . . . . . . . . . . . . . 2 . . . . Self-Inflicted Damage 633 | . . . . . . 30 . 58 . 49 . . . . . . . . . . . 135 . . . 71 . 290 . . . . Shots 13 | . . . . . . 2 . 2 . 1 . . . . . . . . . . . 2 . . . 2 . 4 . . . . Rammed . | . . . . . . . . . . . . . . . . . . . . . . . . . . . . . . . . . Targets Rammed . | . . . . . . . . . . . . . . . . . . . . . . . . . . . . . . . . . Kicked . | . . . . . . . . . . . . . . . . . . . . . . . . . . . . . . . . . Crushed . | . . . . . . . . . . . . . . . . . . . . . . . . . . . . . . . . . Highest Temperature 490 | . 262 64 30 . 17 187 274 376 233 207 242 214 334 127 159 202 215 163 228 242 . 169 168 . . 46 58 490 84 257 150 272 Average Temperature 92 | . 75 31 16 . 8 75 163 128 64 62 34 79 91 72 65 92 104 71 75 96 . 58 62 . . 26 18 140 45 116 77 138 Received Heat Transfer 3942 | . 114 6 . . 63 270 207 459 9 76 24 210 357 . 45 . 126 36 126 12 . 90 198 . 51 190 126 1111 . . . 36 Effects 9 | . . . . . . . 2 2 1 . . . 2 . . . . . . . . . . . . . . 2 . . . . Shutdowns 1 | . . . . . . . . 1 . . . . . . . . . . . . . . . . . . . . . . . . Energy Bleed 6 | . . . . . . . 2 1 . . . . 1 . . . . . . . . . . . . . . 2 . . . . Interference 2 | . . . . . . . . . 1 . . . 1 . . . . . . . . . . . . . . . . . . . Siege Activations . | . . . . . . . . . . . . . . . . . . . . . . . . . . . . . . . . . Robots Corrupted 7 | . . . . . . . . . . . . . . . . . . . . . . 7 . . . . . . . . . . Combat Hostiles . | . . . . . . . . . . . . . . . . . . . . . . . . . . . . . . . . . Parts Fried 9 | . . . . . . . . . . . . . . . . . . . . . . 9 . . . . . . . . . . Impact Corruptions 4 | . . . . . . . . 4 . . . . . . . . . . . . . . . . . . . . . . . . Robots Melted 8 | . 1 . . . . . . . . . . . . . . . 2 . 1 2 . . . . . . . 2 . . . . Combat Hostiles 7 | . . . . . . . . . . . . . . . . . 2 . 1 2 . . . . . . . 2 . . . . Parts Melted 43 | . 1 . . . . 2 . . . . . 1 . . . . 3 . 5 5 2 3 5 . . . . 16 . . . . Heat Transferred 20824 | . 1036 111 . . 124 1295 . . . . . 148 . 703 703 . 925 533 2073 585 200 1713 3842 137 248 709 744 4895 . 100 . . Parts Sabotaged 2 | . . . . . . . . . . . . . . . . . . . . . . . . . . . . . . . . 2 Parts Stolen . | . . . . . . . . . . . . . . . . . . . . . . . . . . . . . . . . . Parts Stripped . | . . . . . . . . . . . . . . . . . . . . . . . . . . . . . . . . . Power Chain Reactions . | . . . . . . . . . . . . . . . . . . . . . . . . . . . . . . . . . Alert | -11 -10 -10 -10 -9 -8 -8 -8 -8 -8 -8 -8 -8 -7 -7 -7 -7 -6 -6 -6 -6 -6 -6 -5 -5 -5 -5 -4 -4 -4 -4 -4 -3 ------- Run | Yrd Mat Min Exi Min Mat Gar Mat Gar Mat Gar Mat Sto Fac Low Low Dat Pro Fac Ext Cet Arc Hub Fac Upp Upp War Pro Fac Upp Upp Zhi Pro Peak Influence 1667 | . 512 181 . 16 130 906 701 1667 1029 1578 1181 1439 751 . . . . 112 752 653 339 887 1117 . . . . 1361 . . . . Initial 812 | . . 121 . . 5 78 441 325 812 668 768 498 654 . . . . 18 . 382 181 118 424 . . . . 163 . . . . Average 624 | . 207 129 . . 106 552 621 1029 945 1136 1004 875 674 . . . . 49 246 487 308 469 774 . . . . 647 . . . . Maximum Alert Level 5 | . 2 . . . . 3 3 5 3 4 4 4 3 . . . . . 3 2 1 3 4 . . . . 4 . . . . Low Security (%) 23 | 100 37 100 . 100 100 13 . . . . . . . . . . . 100 59 . 4 10 . . . . . 27 . . . . Level 1 10 | . 52 . . . . 16 . 4 . . . . . . . . . . 20 7 95 41 . . . . . 12 . . . . Level 2 22 | . 10 . . . . 34 66 11 . 13 . 35 58 . . . . . 18 92 . 20 38 . . . . 9 . . . . Level 3 29 | . . . . . . 35 33 50 100 24 76 40 41 . . . . . 1 . . 27 57 . . . . 34 . . . . Level 4 12 | . . . . . . . . 28 . 62 23 24 . . . . . . . . . . 3 . . . . 17 . . . . Level 5 . | . . . . . . . . 4 . . . . . . . . . . . . . . . . . . . . . . . . High Security . | . . . . . . . . . . . . . . . . . . . . . . . . . . . . . . . . . Max Security . | . . . . . . . . . . . . . . . . . . . . . . . . . . . . . . . . . Squads Dispatched 35 | . 2 . . . . . 2 . . . 1 4 5 . . . . 1 . . . 3 8 . . . . 8 . . . 1 Investigation 8 | . 2 . . . . . 2 . . . . . 1 . . . . . . . . . 2 . . . . 1 . . . . Extermination 6 | . . . . . . . . . . . . . 2 . . . . . . . . 1 . . . . . 3 . . . . Reinforcement 10 | . . . . . . . . . . . 1 1 . . . . . 1 . . . 2 3 . . . . 2 . . . . Assault 9 | . . . . . . . . . . . . 3 2 . . . . . . . . . 1 . . . . 2 . . . 1 Garrison 2 | . . . . . . . . . . . . . . . . . . . . . . . 2 . . . . . . . . . Intercept . | . . . . . . . . . . . . . . . . . . . . . . . . . . . . . . . . . Searches Triggered . | . . . . . . . . . . . . . . . . . . . . . . . . . . . . . . . . . Data Miner Redirects 1 | . . . . . . . . . . . . . . . . . . . . . . . 1 . . . . . . . . . Construction Impeded 2 | . . . . . . . . . . . . 1 . . . . . . . . . . 1 . . . . . . . . . Haulers Reinforced 3 | . . . . . . . . . . . . . . . . . . 1 . . . 1 . . . . . 1 . . . . Active Scanning Responses . | . . . . . . . . . . . . . . . . . . . . . . . . . . . . . . . . . Cargo Convoy Interrupts . | . . . . . . . . . . . . . . . . . . . . . . . . . . . . . . . . . Stealth | -11 -10 -10 -10 -9 -8 -8 -8 -8 -8 -8 -8 -8 -7 -7 -7 -7 -6 -6 -6 -6 -6 -6 -5 -5 -5 -5 -4 -4 -4 -4 -4 -3 --------- Run | Yrd Mat Min Exi Min Mat Gar Mat Gar Mat Gar Mat Sto Fac Low Low Dat Pro Fac Ext Cet Arc Hub Fac Upp Upp War Pro Fac Upp Upp Zhi Pro Distress Signals 15 | . . . . . . . . . 1 . . 2 . . . . . 1 1 3 . 2 2 . . . . 3 . . . . Communications Jammed 8 | . . . . . . . . . . . . . . . . . . 7 . . . 1 . . . . . . . . . . Distress Signals 7 | . . . . . . . . . . . . . . . . . . 7 . . . . . . . . . . . . . . Times Spotted 447 | . 17 2 . . 3 25 9 33 5 22 10 40 17 8 10 . 6 15 34 12 4 14 28 1 9 27 11 63 1 4 . 17 Peak Tracking Total 10 | . 5 2 . . 2 5 4 6 2 4 3 10 6 4 5 . 3 7 4 5 2 7 7 1 5 9 4 10 1 4 . 10 Tactical Retreats 26 | . 1 . . . . 1 . 2 . 1 . 3 . . . . . 1 3 . . . 2 . 1 1 . 9 . 1 . . Traps | -11 -10 -10 -10 -9 -8 -8 -8 -8 -8 -8 -8 -8 -7 -7 -7 -7 -6 -6 -6 -6 -6 -6 -5 -5 -5 -5 -4 -4 -4 -4 -4 -3 ------- Run | Yrd Mat Min Exi Min Mat Gar Mat Gar Mat Gar Mat Sto Fac Low Low Dat Pro Fac Ext Cet Arc Hub Fac Upp Upp War Pro Fac Upp Upp Zhi Pro Traps Triggered 31 | . 1 . . 1 . 2 1 14 1 6 . . . . . . . . 3 . . . . . . . . 2 . . . . Indirectly . | . . . . . . . . . . . . . . . . . . . . . . . . . . . . . . . . . Trap Hack Attempts . | . . . . . . . . . . . . . . . . . . . . . . . . . . . . . . . . . Triggered . | . . . . . . . . . . . . . . . . . . . . . . . . . . . . . . . . . Disarmed . | . . . . . . . . . . . . . . . . . . . . . . . . . . . . . . . . . Reprogrammed . | . . . . . . . . . . . . . . . . . . . . . . . . . . . . . . . . . Reused 2 | . . . . . . . . . . . . . 2 . . . . . . . . . . . . . . . . . . . Traps Extracted . | . . . . . . . . . . . . . . . . . . . . . . . . . . . . . . . . . Installed 4 | . . . . . . . . . . . . . 4 . . . . . . . . . . . . . . . . . . . Triggered 23 | . . . . . . . . . . . . . 2 . . . . . . . . . . 1 . 20 . . . . . . Most Traps Carried 4 | . . . . 4 4 4 4 4 4 4 4 4 4 . . . . . . . . . . . . . . . . . . . Machines | -11 -10 -10 -10 -9 -8 -8 -8 -8 -8 -8 -8 -8 -7 -7 -7 -7 -6 -6 -6 -6 -6 -6 -5 -5 -5 -5 -4 -4 -4 -4 -4 -3 ---------- Run | Yrd Mat Min Exi Min Mat Gar Mat Gar Mat Gar Mat Sto Fac Low Low Dat Pro Fac Ext Cet Arc Hub Fac Upp Upp War Pro Fac Upp Upp Zhi Pro Machines Disabled 64 | . 4 . 2 . 2 3 . 9 . 5 . 6 2 1 . . . . 6 1 1 8 . 1 . . . 13 . . . . Max in Single Turn 5 | . 2 . 1 . 2 1 . 1 . 1 . 2 1 1 . . . . 1 1 1 5 . 1 . . . 5 . . . . Garrison Access 3 | . . . . . . . . . . . . . . . . . . . . . . . 2 . . . . 1 . . . . Garrison Relay 11 | . . . . . . 2 . 6 . 3 . . . . . . . . . . . . . . . . . . . . . . Network Hub 1 | . . . . . . . . . . . . . . . . . . . . . . 1 . . . . . . . . . . Machines Repaired . | . . . . . . . . . . . . . . . . . . . . . . . . . . . . . . . . . Machines Dismantled . | . . . . . . . . . . . . . . . . . . . . . . . . . . . . . . . . . Machines Sabotaged . | . . . . . . . . . . . . . . . . . . . . . . . . . . . . . . . . . Overloaded Fab Kills . | . . . . . . . . . . . . . . . . . . . . . . . . . . . . . . . . . Hacking | -11 -10 -10 -10 -9 -8 -8 -8 -8 -8 -8 -8 -8 -7 -7 -7 -7 -6 -6 -6 -6 -6 -6 -5 -5 -5 -5 -4 -4 -4 -4 -4 -3 --------- Run | Yrd Mat Min Exi Min Mat Gar Mat Gar Mat Gar Mat Sto Fac Low Low Dat Pro Fac Ext Cet Arc Hub Fac Upp Upp War Pro Fac Upp Upp Zhi Pro Machines Accessed 67 | . 2 1 4 1 3 2 5 3 2 . 2 4 4 2 . 4 . 3 5 1 . . 5 1 1 2 . 5 . 1 4 . Terminals 31 | . 2 . . . 2 2 3 3 1 . 2 4 1 . . . . 1 5 1 . . 2 . . . . 2 . . . . Fabricators . | . . . . . . . . . . . . . . . . . . . . . . . . . . . . . . . . . Repair Stations 4 | . . . . . . . . . . . . . 1 . . . . . . . . . 1 . . . . 2 . . . . Recycling Units 3 | . . . . . . . . . . . . . 1 . . . . 2 . . . . . . . . . . . . . . Scanalyzers 1 | . . . . . . . 1 . . . . . . . . . . . . . . . . . . . . . . . . . Garrison Access 7 | . . . . . 1 . 1 . 1 . . . 1 . . . . . . . . . 2 . . . . 1 . . . . Total Hacks 186 | . 5 1 4 1 7 2 15 6 3 . 6 9 10 7 . 33 . 9 10 2 . . 11 5 1 4 . 17 . 1 17 . Successful 124 | . 1 1 4 1 4 1 8 1 3 . 3 5 2 7 . 33 . 6 3 . . . 4 5 1 4 . 9 . 1 17 . Failed 62 | . 4 . . . 3 1 7 5 . . 3 4 8 . . . . 3 7 2 . . 7 . . . . 8 . . . . Catastrophic 12 | . 2 . . . . 1 1 1 . . . . 1 . . . . . . . . . 4 . . . . 2 . . . . Database Lockouts . | . . . . . . . . . . . . . . . . . . . . . . . . . . . . . . . . . Manual 42 | . . . . . 3 . 3 . . . 2 3 8 . . . . 7 6 1 . . 3 . . 1 . 5 . . . . Terminals 75 | . 5 . . . 6 2 10 6 2 . 6 9 1 . . . . 4 10 2 . . 4 . . . . 8 . . . . Fabricators . | . . . . . . . . . . . . . . . . . . . . . . . . . . . . . . . . . Repair Stations 12 | . . . . . . . . . . . . . 3 . . . . . . . . . 3 . . . . 6 . . . . Recycling Units 8 | . . . . . . . . . . . . . 3 . . . . 5 . . . . . . . . . . . . . . Scanalyzers 3 | . . . . . . . 3 . . . . . . . . . . . . . . . . . . . . . . . . . Garrison Access 14 | . . . . . 1 . 2 . 1 . . . 3 . . . . . . . . . 4 . . . . 3 . . . . Terminal Hacks 93 | . 1 1 4 1 2 1 3 1 2 . 3 3 . 7 . 33 . 1 1 . . . 1 5 1 4 . . . 1 17 . Record 34 | . . . 4 . . . . . . . . . . 6 . 11 . . . . . . . 5 . 3 . . . . 5 . Part Schematic 17 | . . . . . . . . . . . . 1 . . . 12 . . . . . . . . . . . . . . 4 . Robot Schematic 7 | . . . . . . . . . . . . . . . . 7 . . . . . . . . . . . . . . . . Robot Analysis 5 | . . . . . . . . . . . 1 . . . . . . . . . . . . . . . . . . . 4 . Prototype ID Bank 9 | . . . . . . . 1 . . . 1 . . . . 3 . . . . . . . . . . . . . . 4 . Open Door 7 | . . 1 . 1 . . . . . . . 1 . 1 . . . . . . . . . . 1 1 . . . 1 . . Branch Access Points 1 | . . . . . . . . . . . . . . . . . . . . . . . 1 . . . . . . . . . Emergency Access Points 2 | . . . . . 1 . . 1 . . . . . . . . . . . . . . . . . . . . . . . . Alert Level 3 | . . . . . . . 1 . 1 . 1 . . . . . . . . . . . . . . . . . . . . . Locate Traps 2 | . 1 . . . . . . . . . . . . . . . . 1 . . . . . . . . . . . . . . Zone Layout 5 | . . . . . 1 . 1 . 1 . . 1 . . . . . . 1 . . . . . . . . . . . . . Garrison Registry 1 | . . . . . . 1 . . . . . . . . . . . . . . . . . . . . . . . . . . Fabricator Hacks . | . . . . . . . . . . . . . . . . . . . . . . . . . . . . . . . . . Repair Station Hacks 5 | . . . . . . . . . . . . . . . . . . . . . . . 1 . . . . 4 . . . . Scan Component 3 | . . . . . . . . . . . . . . . . . . . . . . . 1 . . . . 2 . . . . Repair 2 | . . . . . . . . . . . . . . . . . . . . . . . . . . . . 2 . . . . Recycling Unit Hacks 1 | . . . . . . . . . . . . . . . . . . 1 . . . . . . . . . . . . . . Report Inventory 1 | . . . . . . . . . . . . . . . . . . 1 . . . . . . . . . . . . . . Scanalyzer 2 | . . . . . . . 2 . . . . . . . . . . . . . . . . . . . . . . . . . Insert Component 2 | . . . . . . . 2 . . . . . . . . . . . . . . . . . . . . . . . . . Garrison Access Hacks 5 | . . . . . 1 . 1 . 1 . . . . . . . . . . . . . 1 . . . . 1 . . . . Unlock Access 3 | . . . . . 1 . 1 . 1 . . . . . . . . . . . . . . . . . . . . . . . Seal Access 2 | . . . . . . . . . . . . . . . . . . . . . . . 1 . . . . 1 . . . . Unauthorized Hacks 18 | . . . . . 1 . 2 . . . . 2 2 . . . . 4 2 . . . 1 . . . . 4 . . . . Terminals 11 | . . . . . 1 . 1 . . . . 2 . . . . . 2 2 . . . . . . . . 3 . . . . Track 2 | . . . . . . . . . . . . 1 . . . . . . . . . . . . . . . 1 . . . . Botnet 6 | . . . . . 1 . 1 . . . . . . . . . . 1 2 . . . . . . . . 1 . . . . Disrupt 3 | . . . . . . . . . . . . 1 . . . . . 1 . . . . . . . . . 1 . . . . Fabricators . | . . . . . . . . . . . . . . . . . . . . . . . . . . . . . . . . . Repair Stations 1 | . . . . . . . . . . . . . . . . . . . . . . . . . . . . 1 . . . . Mechanics 1 | . . . . . . . . . . . . . . . . . . . . . . . . . . . . 1 . . . . Recycling Units 4 | . . . . . . . . . . . . . 2 . . . . 2 . . . . . . . . . . . . . . Recyclers 2 | . . . . . . . . . . . . . 1 . . . . 1 . . . . . . . . . . . . . . Mask 2 | . . . . . . . . . . . . . 1 . . . . 1 . . . . . . . . . . . . . . Scanalyzers 1 | . . . . . . . 1 . . . . . . . . . . . . . . . . . . . . . . . . . Extract 1 | . . . . . . . 1 . . . . . . . . . . . . . . . . . . . . . . . . . Garrison Access 1 | . . . . . . . . . . . . . . . . . . . . . . . 1 . . . . . . . . . Jam 1 | . . . . . . . . . . . . . . . . . . . . . . . 1 . . . . . . . . . Data Cores Recovered 2 | . . . . . . . . . . . . . . . . . . . . . . . 1 . . . . 1 . . . . Used 1 | . . . . . . . . . . . . . . . . . . . . . . . 1 . . . . . . . . . Hacking Detections 36 | . 1 . . . 2 1 5 3 1 . 2 2 4 . . . . 3 4 2 . . 2 . . . . 4 . . . . Full Trace Events 6 | . 1 . . . . . 1 1 . . . . 1 . . . . . . . . . 1 . . . . 1 . . . . Feedback Events . | . . . . . . . . . . . . . . . . . . . . . . . . . . . . . . . . . Feedback Blocked . | . . . . . . . . . . . . . . . . . . . . . . . . . . . . . . . . . Robot Schematics Acquired 7 | . . . . . . . . . . . . . . . . 7 . . . . . . . . . . . . . . . . Robots Built . | . . . . . . . . . . . . . . . . . . . . . . . . . . . . . . . . . Authchips . | . . . . . . . . . . . . . . . . . . . . . . . . . . . . . . . . . Time . | . . . . . . . . . . . . . . . . . . . . . . . . . . . . . . . . . Total Robot Build Rating . | . . . . . . . . . . . . . . . . . . . . . . . . . . . . . . . . . Part Schematics Acquired 20 | . . . . . . . 3 . . . . 1 . . . 12 . . . . . . . . . . . . . . 4 . Parts Built . | . . . . . . . . . . . . . . . . . . . . . . . . . . . . . . . . . Authchips . | . . . . . . . . . . . . . . . . . . . . . . . . . . . . . . . . . Time . | . . . . . . . . . . . . . . . . . . . . . . . . . . . . . . . . . Total Part Build Rating . | . . . . . . . . . . . . . . . . . . . . . . . . . . . . . . . . . Parts Repaired 2 | . . . . . . . . . . . . . . . . . . . . . . . . . . . . 2 . . . . Time 120 | . . . . . . . . . . . . . . . . . . . . . . . . . . . . 120 . . . . Parts Recycled . | . . . . . . . . . . . . . . . . . . . . . . . . . . . . . . . . . Recycled Matter . | . . . . . . . . . . . . . . . . . . . . . . . . . . . . . . . . . Retrieved Matter . | . . . . . . . . . . . . . . . . . . . . . . . . . . . . . . . . . Retrieved Components . | . . . . . . . . . . . . . . . . . . . . . . . . . . . . . . . . . Parts Scanalyzed . | . . . . . . . . . . . . . . . . . . . . . . . . . . . . . . . . . Part Schematics Acquired . | . . . . . . . . . . . . . . . . . . . . . . . . . . . . . . . . . Parts Damaged . | . . . . . . . . . . . . . . . . . . . . . . . . . . . . . . . . . Bothacking | -11 -10 -10 -10 -9 -8 -8 -8 -8 -8 -8 -8 -8 -7 -7 -7 -7 -6 -6 -6 -6 -6 -6 -5 -5 -5 -5 -4 -4 -4 -4 -4 -3 ------------ Run | Yrd Mat Min Exi Min Mat Gar Mat Gar Mat Gar Mat Sto Fac Low Low Dat Pro Fac Ext Cet Arc Hub Fac Upp Upp War Pro Fac Upp Upp Zhi Pro Used RIF Installer . | . . . . . . . . . . . . . . . . . . . . . . . . . . . . . . . . . Robots Hacked . | . . . . . . . . . . . . . . . . . . . . . . . . . . . . . . . . . Non-combat . | . . . . . . . . . . . . . . . . . . . . . . . . . . . . . . . . . Combat . | . . . . . . . . . . . . . . . . . . . . . . . . . . . . . . . . . Robot Hacks Applied . | . . . . . . . . . . . . . . . . . . . . . . . . . . . . . . . . . Relay Couplers Released 42 | . . . . . . 7 . 23 . 11 . . . . . . . . . . . . . . . . . 1 . . . . Machine Destruction 42 | . . . . . . 7 . 23 . 11 . . . . . . . . . . . . . . . . . 1 . . . . Fabnet Peak Effective % . | . . . . . . . . . . . . . . . . . . . . . . . . . . . . . . . . . Robots Rewired 19 | . . . . . . . . . . 3 . . . 4 . . . . 12 . . . . . . . . . . . . . Allies Hacked 1 | . . . . . . . . . . . . . . . . . 1 . . . . . . . . . . . . . . . Hacks Repelled . | . . . . . . . . . . . . . . . . . . . . . . . . . . . . . . . . . Allies | -11 -10 -10 -10 -9 -8 -8 -8 -8 -8 -8 -8 -8 -7 -7 -7 -7 -6 -6 -6 -6 -6 -6 -5 -5 -5 -5 -4 -4 -4 -4 -4 -3 -------- Run | Yrd Mat Min Exi Min Mat Gar Mat Gar Mat Gar Mat Sto Fac Low Low Dat Pro Fac Ext Cet Arc Hub Fac Upp Upp War Pro Fac Upp Upp Zhi Pro Total Allies 41 | . . . . . . . . . . 5 . 2 . 4 . . . . 25 5 . . . . . . . . . . . . Largest Group 16 | . . . . . . . . . . 4 3 4 . 4 4 4 4 . 16 15 13 11 . . . . . . . . . . Highest-Rated Group 911 | . . . . . . . . . . 145 120 142 . 80 80 80 80 . 597 911 850 672 . . . . . . . . . . Highest-Rated Ally 159 | . . . . . . . . . . 40 40 40 . 20 20 20 20 . 159 153 153 96 . . . . . . . . . . Warlord Squad Rendezvous 6 | . . . . . . . . . . . . . . . . . . 3 . . . 1 2 . . . . . . . . . Infantry 1 | . . . . . . . . . . . . . . . . . . . . . . . 1 . . . . . . . . . Muscle 1 | . . . . . . . . . . . . . . . . . . . . . . . 1 . . . . . . . . . Geek 1 | . . . . . . . . . . . . . . . . . . 1 . . . . . . . . . . . . . . Ranger 1 | . . . . . . . . . . . . . . . . . . . . . . 1 . . . . . . . . . . Pyro 2 | . . . . . . . . . . . . . . . . . . 2 . . . . . . . . . . . . . . Total Orders 9 | . . . . . . . . . . . . . 5 . . . . . . 4 . . . . . . . . . . . . ROAM 4 | . . . . . . . . . . . . . . . . . . . . 4 . . . . . . . . . . . . EXPLORE 4 | . . . . . . . . . . . . . 4 . . . . . . . . . . . . . . . . . . . RETURN 1 | . . . . . . . . . . . . . 1 . . . . . . . . . . . . . . . . . . . Ally Attacks 372 | . . . . . . . . . . 29 21 39 6 3 8 . 5 . 155 47 17 42 . . . . . . . . . . Total Damage 9423 | . . . . . . . . . . 813 596 954 . . 267 . 173 . 3108 1257 565 1690 . . . . . . . . . . Kills 74 | . . . . . . . . . . 11 9 5 . . 2 . 1 . 24 8 3 11 . . . . . . . . . . Allies Corrupted 8 | . . . . . . . . . . . . . . . . . . . . 1 . 7 . . . . . . . . . . Allies Melted 2 | . . . . . . . . . . 1 . . . . . . . . . . . . . . . 1 . . . . . . Intel | -11 -10 -10 -10 -9 -8 -8 -8 -8 -8 -8 -8 -8 -7 -7 -7 -7 -6 -6 -6 -6 -6 -6 -5 -5 -5 -5 -4 -4 -4 -4 -4 -3 ------- Run | Yrd Mat Min Exi Min Mat Gar Mat Gar Mat Gar Mat Sto Fac Low Low Dat Pro Fac Ext Cet Arc Hub Fac Upp Upp War Pro Fac Upp Upp Zhi Pro Robot Analysis Total 5 | . . . . . . . . . . . 1 . . . . . . . . . . . . . . . . . . . 4 . Derelict Logs Recovered 6 | . . 1 . . . . . . . . . . . 1 2 . 1 . . . . . . 1 . . . . . . . . Drone Launches 11 | . . . . . . . . . . . . . 6 3 2 . . . . . . . . . . . . . . . . . Drone Recoveries . | . . . . . . . . . . . . . . . . . . . . . . . . . . . . . . . . . Decoded 0b10 Intel 48 | . . . . . . . . . . . . . . . . . . . . . . . . . . . . 48 . . . . Garrisons 1 | . . . . . . . . . . . . . . . . . . . . . . . . . . . . 1 . . . . Patrols 2 | . . . . . . . . . . . . . . . . . . . . . . . . . . . . 2 . . . . Investigations 1 | . . . . . . . . . . . . . . . . . . . . . . . . . . . . 1 . . . . Reinforcements 8 | . . . . . . . . . . . . . . . . . . . . . . . . . . . . 8 . . . . Guards 36 | . . . . . . . . . . . . . . . . . . . . . . . . . . . . 36 . . . . Exploration | -11 -10 -10 -10 -9 -8 -8 -8 -8 -8 -8 -8 -8 -7 -7 -7 -7 -6 -6 -6 -6 -6 -6 -5 -5 -5 -5 -4 -4 -4 -4 -4 -3 ------------- Run | Yrd Mat Min Exi Min Mat Gar Mat Gar Mat Gar Mat Sto Fac Low Low Dat Pro Fac Ext Cet Arc Hub Fac Upp Upp War Pro Fac Upp Upp Zhi Pro Turns Passed 19185 | 47 408 263 566 181 151 756 407 1780 297 939 287 582 805 649 790 124 615 560 1676 472 128 515 626 459 546 1384 381 1613 210 496 269 203 Spaces Moved 11171 | 47 252 265 570 136 99 424 259 993 169 521 171 297 394 371 503 82 373 316 752 177 79 278 267 284 333 819 223 788 335 258 143 193 Core 85 | 20 17 . . . . . . . . . . . . . . . . . . . . . . . . . . 48 . . . . Treads 1 | . . . . . . . . . . . . . . . . . . . . . . . . . . . . 1 . . . . Legs . | . . . . . . . . . . . . . . . . . . . . . . . . . . . . . . . . . Wheels 10121 | 27 235 265 570 136 99 424 259 993 169 521 171 297 394 371 503 82 373 316 752 177 79 278 267 284 333 819 223 704 . . . . Hover 747 | . . . . . . . . . . . . . . . . . . . . . . . . . . . . 35 211 165 143 193 Flight 217 | . . . . . . . . . . . . . . . . . . . . . . . . . . . . . 124 93 . . Fastest Speed 38 | 50 90 95 95 110 110 115 115 125 135 135 135 130 145 145 145 145 145 145 160 145 145 130 155 155 155 150 150 50 55 55 96 38 Average Speed 137 | 72 102 95 95 110 116 124 127 131 135 135 143 144 145 145 145 145 145 158 160 155 145 144 160 155 155 154 150 150 58 172 167 95 Slowest Speed 850 | 90 150 95 110 110 125 130 130 180 135 135 145 145 145 145 145 145 145 160 160 160 145 145 175 155 170 205 150 850 60 240 240 146 Overloaded Moves 90 | . . . . . . . . . . . . . . . . . . . . . . . . . . . . . . . . 90 Propulsion Burnouts . | . . . . . . . . . . . . . . . . . . . . . . . . . . . . . . . . . Robots Hopped . | . . . . . . . . . . . . . . . . . . . . . . . . . . . . . . . . . Cave-ins Triggered . | . . . . . . . . . . . . . . . . . . . . . . . . . . . . . . . . . Teleports 1 | . . . . . . . . . . . . . . . . . . . . . . . . . . . . . . . . 1 Exploration Rate (%) 49 | 3 57 82 94 24 20 63 22 84 17 53 16 54 13 65 67 70 86 9 85 78 76 30 10 50 53 87 51 24 55 43 60 34 Regions Visited 32 Branch Regions 20 Pre-discovered Areas 7 | . . . . . . . . . . . . . . 1 1 1 . . . . . . . 1 . . . . . . 3 . Known Exits Taken 14 | . . . . . 1 . 1 . 1 . . . 1 1 1 . 1 . . . . . 1 1 . . 1 1 1 1 1 . Unknown Exits Taken 15 | 1 1 1 1 1 . . . . . . 1 1 . . . 1 . 1 1 1 1 1 . . 1 1 . . . . . . Scrap Searched 13 | . . 2 . 1 . . . . . . . . . 2 1 . 2 . . . . . . 1 . . 1 . 3 . . . Spaces Dug 42 | . . . . . . 18 . 3 3 8 . . . . . . . 5 1 . . 1 2 . . . . 1 . . . . Terrain Destroyed 1269 | . 83 12 108 25 46 106 12 27 22 73 6 176 10 . 7 . 9 7 16 1 . 207 33 1 13 36 39 194 . . . . Melee 11 | . . . . . . . . 3 . 8 . . . . . . . . . . . . . . . . . . . . . . Projectile 292 | . . . . . . . . 3 22 4 6 28 10 . 7 . 2 7 16 1 . 10 33 1 13 8 28 93 . . . . AOE 966 | . 83 12 108 25 46 106 12 21 . 61 . 148 . . . . 7 . . . . 197 . . . 28 11 101 . . . . Terrain Rammed . | . . . . . . . . . . . . . . . . . . . . . . . . . . . . . . . . . Walls Destroyed . | . . . . . . . . . . . . . . . . . . . . . . . . . . . . . . . . . Machines Disabled . | . . . . . . . . . . . . . . . . . . . . . . . . . . . . . . . . . Actions | -11 -10 -10 -10 -9 -8 -8 -8 -8 -8 -8 -8 -8 -7 -7 -7 -7 -6 -6 -6 -6 -6 -6 -5 -5 -5 -5 -4 -4 -4 -4 -4 -3 --------- Run | Yrd Mat Min Exi Min Mat Gar Mat Gar Mat Gar Mat Sto Fac Low Low Dat Pro Fac Ext Cet Arc Hub Fac Upp Upp War Pro Fac Upp Upp Zhi Pro Total 13665 | 61 325 269 581 166 128 545 300 1279 208 673 197 368 539 458 538 87 410 356 1169 355 87 329 354 302 345 932 245 1032 349 299 172 207 Wait 795 | . 6 . . 19 2 15 5 15 15 11 4 10 62 18 8 . 19 15 224 145 4 7 7 . . 80 8 64 3 28 . 1 Move 11139 | 46 251 264 569 135 98 423 258 992 168 520 170 296 393 370 502 81 372 315 751 176 78 277 266 283 332 818 222 787 334 257 142 193 Hop . | . . . . . . . . . . . . . . . . . . . . . . . . . . . . . . . . . Pick Up 166 | 8 10 1 3 9 7 10 4 16 4 . 2 1 12 2 4 . . 5 4 6 . 2 14 8 . 6 1 17 5 . 4 1 Fast Attach 68 | . . . . . . 1 2 . 1 . 4 2 . . 2 3 . . 1 3 . 4 . . 2 4 . 14 2 11 12 . Attach 110 | 6 6 . . . 8 8 1 9 . 1 . 3 11 . 2 . . 3 1 . . 2 14 . . 3 . 26 3 . . 3 Detach 14 | . . . . . 2 . 1 . . . 1 . 1 . 1 . . . . . . . . . 1 . . 6 1 . . . Swap 100 | . 6 . 1 3 4 3 3 20 1 4 2 5 6 . 2 . 2 5 4 6 . 4 3 1 1 1 . 11 . . 1 1 Drop 132 | 1 2 . . . 2 4 7 10 5 . 6 4 3 . 5 3 . 2 6 10 . 4 1 7 2 14 . 14 1 . 13 6 Fire 656 | . 44 4 8 . 5 65 19 79 14 33 8 47 31 11 12 . 17 11 28 9 5 29 49 3 7 6 14 93 . 3 . 2 Melee 66 | . . . . . . . . 34 . 15 . . 16 1 . . . . . . . . . . . . . . . . . . Ram . | . . . . . . . . . . . . . . . . . . . . . . . . . . . . . . . . . Kick . | . . . . . . . . . . . . . . . . . . . . . . . . . . . . . . . . . Crush . | . . . . . . . . . . . . . . . . . . . . . . . . . . . . . . . . . Escape Stasis 184 | . . . . . . 16 . 104 . 48 . . . . . . . . 16 . . . . . . . . . . . . . Rewire 231 | . . . . . . . . . . 41 . . . 56 . . . . 134 . . . . . . . . . . . . . Trap 4 | . . . . . . . . . . . . . 4 . . . . . . . . . . . . . . . . . . . Miscellaneous . | . . . . . . . . . . . . . . . . . . . . . . . . . . . . . . . . . Route ------- -11/Scrapyard -10/Materials (discovered 2 exits: [*Mat] / *Min) -10/Mines (discovered 3 exits: [*Mat x2] / *Exi) -10/Exiles -9/Mines -8/Materials (discovered 2 exits: *Sto / Gar) -8/Garrison (discovered 3 exits: *Mat x3) -8/Materials -8/Garrison (discovered 3 exits: *Mat x3) -8/Materials (discovered 3 exits: Fac / *Sto / Gar) -8/Garrison (discovered 3 exits: *Mat x3) -8/Materials -8/Storage -7/Factory -7/Lower Caves -7/Lower Caves (discovered 2 exits: *Fac / *Dat) -7/Data Miner -6/Proximity Caves -6/Factory (discovered 3 exits: *Fac / Low / *Ext) -6/Extension (discovered 2 exits: *Fac / *Cet) -6/Cetus (discovered 2 exits: *Fac / *Arc) -6/Archives (discovered 3 exits: *Fac / [*Hub x2]) -6/Hub_04(d) -5/Factory (discovered 2 exits: *Upp x2) -5/Upper Caves -5/Upper Caves (discovered 2 exits: Fac / *War) -5/Warlord -4/Proximity Caves -4/Factory -4/Upper Caves -4/Upper Caves -4/Zhirov -3/Proximity Caves History --------- Turn | Location | Event 11 | -11/Scrapyard | Discovered new exit (range 15) 48 | -11/Scrapyard | Entered Materials 304 | -10/Materials | Build established: Mutant 339 | -10/Materials | Core integrity fell below 50% 368 | -10/Materials | Lost 3 parts (1p2n) 372 | -10/Materials | Discovered new exit (range 16) 445 | -10/Materials | Discovered new exit (range 12) 456 | -10/Materials | Entered Mines 546 | -10/Mines | Learned Materials stockpile data 564 | -10/Mines | Discovered new exit (range 16) 577 | -10/Mines | Discovered new exit (range 14) 579 | -10/Mines | Found the Drone Emporium 583 | -10/Mines | Found Prototype Device 716 | -10/Mines | Deemed a non-threat by the Exiles lab entrance 716 | -10/Mines | Discovered new exit (range 5) 719 | -10/Mines | Entered Exiles 719 | -10/Exiles | Found Exiles lab abandoned 1274 | -10/Exiles | Discovered new exit (range 10) 1285 | -10/Exiles | Entered Mines 1293 | -9/Mines | Met a Derelict who couldn't figure out how to use a Trap Extractor 1386 | -9/Mines | Found a hidden stash of uninstalled traps 1451 | -9/Mines | Discovered new exit (range 9) 1462 | -9/Mines | Assembled infested the area 1466 | -9/Mines | Entered Materials 1466 | -8/Materials | Evolved 4 slots: Utility x3, Weapon x1 1507 | -8/Materials | Discovered new exit (range 7) 1616 | -8/Materials | Identified exit to Garrison 1617 | -8/Materials | Entered Garrison 1672 | -8/Garrison | Assembled breached garrison interior 1725 | -8/Garrison | Discovered new exit (range 34) 1725 | -8/Garrison | Discovered new exit (range 84) 1725 | -8/Garrison | Discovered new exit (range 59) 1745 | -8/Garrison | Garrison Relay disabled 1888 | -8/Garrison | Destroyed 14 combat bots 1891 | -8/Garrison | Lost 7 parts (1p2n4w) 2121 | -8/Garrison | Garrison Relay disabled 2347 | -8/Garrison | Build established: Tank 2373 | -8/Garrison | Entered Materials 2464 | -8/Materials | Identified Bomb Drone Bay 2779 | -8/Materials | Identified exit to Garrison 2780 | -8/Materials | Entered Garrison 2834 | -8/Garrison | Triggered checkpoint 2865 | -8/Garrison | Garrison Relay disabled 3034 | -8/Garrison | Triggered checkpoint 3034 | -8/Garrison | Triggered checkpoint 3070 | -8/Garrison | Core integrity fell below 50% 3128 | -8/Garrison | Lost 3 parts (1n2u) 3246 | -8/Garrison | Discovered new exit (range 10) 3255 | -8/Garrison | Triggered checkpoint 3338 | -8/Garrison | Garrison Relay disabled 3349 | -8/Garrison | Garrison Relay disabled 3738 | -8/Garrison | Triggered checkpoint 3902 | -8/Garrison | Discovered new exit (range 10) 3964 | -8/Garrison | Triggered checkpoint 3976 | -8/Garrison | Garrison Relay disabled 4084 | -8/Garrison | Triggered checkpoint 4264 | -8/Garrison | Build established: Scavenger-Gunner 4359 | -8/Garrison | Discovered new exit (range 11) 4390 | -8/Garrison | Triggered checkpoint 4444 | -8/Garrison | Garrison Relay disabled 4472 | -8/Garrison | Garrison Relay disabled 4560 | -8/Garrison | Entered Materials 4755 | -8/Materials | Discovered new exit (range 15) 4840 | -8/Materials | Discovered new exit (range 14) 4855 | -8/Materials | Identified exit to Garrison 4857 | -8/Materials | Entered Garrison 4920 | -8/Garrison | Build established: Gunner 4994 | -8/Garrison | Rescued a captive Derelict 5008 | -8/Garrison | Rescued a captive Derelict 5034 | -8/Garrison | Garrison Relay disabled 5104 | -8/Garrison | Triggered checkpoint 5197 | -8/Garrison | Triggered checkpoint 5211 | -8/Garrison | Garrison Relay disabled 5272 | -8/Garrison | Discovered new exit (range 9) 5289 | -8/Garrison | Triggered checkpoint 5346 | -8/Garrison | Discovered new exit (range 3) 5503 | -8/Garrison | Triggered checkpoint 5505 | -8/Garrison | Triggered checkpoint 5573 | -8/Garrison | Discovered new exit (range 10) 5605 | -8/Garrison | Build established: Mutant 5663 | -8/Garrison | Triggered checkpoint 5679 | -8/Garrison | Garrison Relay disabled 5796 | -8/Garrison | Entered Materials 5796 | -8/Materials | Accompanied by 3 allies 5888 | -8/Materials | Discovered new exit (range 14) 6083 | -8/Materials | Entered Storage 6083 | -8/Storage | Accompanied by 3 allies 6262 | -8/Storage | Met a pair of Derelict thieves 6292 | -8/Storage | Build established: Tank 6361 | -8/Storage | Lost 3 allies 6483 | -8/Storage | First assault squad dispatched 6550 | -8/Storage | Destroyed 9 combat bots 6598 | -8/Storage | Core integrity fell below 20% 6620 | -8/Storage | Discovered new exit (range 16) 6665 | -8/Storage | Entered Factory 6665 | -7/Factory | Evolved 2 slots: Utility x2 6715 | -7/Factory | Build established: Gunner 7065 | -7/Factory | First assault squad dispatched 7265 | -7/Factory | Lost 4 parts (1p3u) 7342 | -7/Factory | Lost 3 allies 7458 | -7/Factory | Discovered new exit (range 7) 7469 | -7/Factory | Identified exit to Lower Caves 7470 | -7/Factory | Entered Lower Caves 7477 | -7/Lower Caves | Met a Warlord Commander 7478 | -7/Lower Caves | Learned location of Warlord (-5) 7479 | -7/Lower Caves | Warlord Commander delivered Encrypted Comm Array 7479 | -7/Lower Caves | Found Encrypted Comm Array 7489 | -7/Lower Caves | Build established: Mutant 7508 | -7/Lower Caves | Learned Factory emergency access door positions 7696 | -7/Lower Caves | Attacked by a delusional Derelict stockpiling Unaware 7907 | -7/Lower Caves | Learned location of 1 exit from Factory 7907 | -7/Lower Caves | Learned Research emergency access door positions 7907 | -7/Lower Caves | Learned Extension stockpile data 7937 | -7/Lower Caves | Encountered a Warlord checkpoint 8059 | -7/Lower Caves | Build established: Commander-Mutant 8083 | -7/Lower Caves | Discovered new exit (range 16) 8112 | -7/Lower Caves | Identified exit to Lower Caves 8119 | -7/Lower Caves | Entered another Lower Caves area 8119 | -7/Lower Caves | Accompanied by 4 allies 8137 | -7/Lower Caves | Discovered new exit (range 12) 8153 | -7/Lower Caves | Identified exit to Factory 8340 | -7/Lower Caves | Learned Factory non-interactive machine intel 8530 | -7/Lower Caves | Discovered new exit (range 8) 8537 | -7/Lower Caves | Build established: Commander-Tank 8539 | -7/Lower Caves | Identified exit to Data Miner 8650 | -7/Lower Caves | Found Imp. Powered Armor 8881 | -7/Lower Caves | Learned location of Zion (-6) 8909 | -7/Lower Caves | Entered Data Miner 8909 | -7/Data Miner | Accompanied by 4 allies 8909 | -7/Data Miner | Discovered new exit (range 6) 8939 | -7/Data Miner | Met Data Miner 8978 | -7/Data Miner | Learned location of Section 7 (-2) 8978 | -7/Data Miner | Acquired the access code to Warlord's prototype stash 8992 | -7/Data Miner | Received God Mode back door access code from Data Miner 9033 | -7/Data Miner | Entered Proximity Caves 9033 | -6/Proximity Caves | Accompanied by 4 allies 9096 | -6/Proximity Caves | Attracted the attention of an 0b10 checkpoint 9145 | -6/Proximity Caves | Lost 3 allies 9427 | -6/Proximity Caves | Build established: Tank 9565 | -6/Proximity Caves | Learned Factory emergency access door positions 9613 | -6/Proximity Caves | Discovered exit to Factory (range 12) 9625 | -6/Proximity Caves | Spotted B-75 Beast 9648 | -6/Proximity Caves | Entered Factory 9648 | -6/Factory | Evolved 2 slots: Utility x1, Weapon x1 9649 | -6/Factory | Identified exit to Lower Caves 9651 | -6/Factory | Loaded intel: 222 non-interactive machine locations 9703 | -6/Factory | Joined by Warlord Geek squad 9856 | -6/Factory | Joined by Warlord Pyro squad 10012 | -6/Factory | Joined by Warlord Pyro squad 10046 | -6/Factory | Discovered new exit (range 7) 10070 | -6/Factory | Discovered new exit (range 14) 10208 | -6/Factory | Entered Extension 10292 | -6/Extension | Rescued a captive Derelict 10292 | -6/Extension | Rescued a captive Derelict 10367 | -6/Extension | Rescued a captive Derelict 10368 | -6/Extension | Rescued a captive Derelict 10610 | -6/Extension | Rescued A7 10807 | -6/Extension | Disrupted transfer network 11114 | -6/Extension | Spotted B-75 Beast 11122 | -6/Extension | Allies destroyed B-75 Beast 11129 | -6/Extension | Spotted B-75 Beast 11138 | -6/Extension | Destroyed B-75 Beast 11202 | -6/Extension | Rescued a captive Derelict 11202 | -6/Extension | Rescued a captive Derelict 11237 | -6/Extension | Rescued a captive Derelict 11238 | -6/Extension | Rescued a captive Derelict 11345 | -6/Extension | Rescued a captive Derelict 11422 | -6/Extension | Rescued a captive Derelict 11423 | -6/Extension | Rescued a captive Derelict 11467 | -6/Extension | Rescued a captive Derelict 11471 | -6/Extension | Lost 5 allies 11818 | -6/Extension | Discovered new exit (range 10) 11820 | -6/Extension | Discovered new exit (range 6) 11822 | -6/Extension | Build established: Commander-Tank 11884 | -6/Extension | Entered Cetus 11884 | -6/Cetus | Accompanied by 15 allies (A7) 11889 | -6/Cetus | Acquired a Cetus Manufacturing Module code from A7 11911 | -6/Cetus | Spotted Cetus Guard 11911 | -6/Cetus | Spotted Cetus Guard 11912 | -6/Cetus | Spotted Cetus Guard 11912 | -6/Cetus | Spotted Cetus Guard 11918 | -6/Cetus | Destroyed Cetus Guard 11919 | -6/Cetus | Allies destroyed Cetus Guard 11925 | -6/Cetus | Allies destroyed Cetus Guard 11927 | -6/Cetus | Allies destroyed Cetus Guard 11954 | -6/Cetus | Lost 3 allies 12050 | -6/Cetus | Started Cetus Manufacturing Module 12065 | -6/Cetus | Escorted A7 to Cetus Mainframe 12075 | -6/Cetus | Manufactured an Enhanced Grunt 12100 | -6/Cetus | Manufactured an Enhanced Grunt 12125 | -6/Cetus | Manufactured an Enhanced Grunt 12150 | -6/Cetus | Manufactured an Enhanced Grunt 12175 | -6/Cetus | Manufactured an Enhanced Grunt 12198 | -6/Cetus | Discovered new exit (range 15) 12230 | -6/Cetus | Spotted Cetus Guard 12231 | -6/Cetus | Spotted Cetus Guard 12233 | -6/Cetus | Spotted Cetus Guard 12234 | -6/Cetus | Spotted Cetus Guard 12238 | -6/Cetus | Allies destroyed Cetus Guard 12239 | -6/Cetus | Destroyed Cetus Guard 12243 | -6/Cetus | Destroyed Cetus Guard 12251 | -6/Cetus | Allies destroyed Cetus Guard 12259 | -6/Cetus | Discovered new exit (range 16) 12268 | -6/Cetus | Met Revision 17 12356 | -6/Cetus | Entered Archives 12356 | -6/Archives | Accompanied by 13 allies (A7) 12361 | -6/Archives | Received a hacking code to weaken MAIN.C 12397 | -6/Archives | Unable to access archive contents 12403 | -6/Archives | Discovered new exit (range 15) 12414 | -6/Archives | Unable to access archive contents 12423 | -6/Archives | Discovered new exit (range 15) 12445 | -6/Archives | Discovered new exit (range 15) 12484 | -6/Archives | Entered Hub_04(d) 12484 | -6/Hub_04(d) | Accompanied by 11 allies 12522 | -6/Hub_04(d) | Joined by Warlord Ranger squad 12740 | -6/Hub_04(d) | Discovered new exit (range 3) 12867 | -6/Hub_04(d) | Network Hub disabled 12893 | -6/Hub_04(d) | Murdered 4 allies 12911 | -6/Hub_04(d) | Spotted Lightning 12912 | -6/Hub_04(d) | Spotted Lightning 12912 | -6/Hub_04(d) | Spotted Lightning 12969 | -6/Hub_04(d) | Lost 7 allies 12972 | -6/Hub_04(d) | Destroyed Lightning 12995 | -6/Hub_04(d) | Destroyed Lightning 12999 | -6/Hub_04(d) | Entered Factory 12999 | -5/Factory | Evolved 2 slots: Power x1, Utility x1 13026 | -5/Factory | Lost 5 parts (2u3w) 13084 | -5/Factory | Joined by Warlord Infantry squad 13216 | -5/Factory | Build established: Scavenger-Tank 13258 | -5/Factory | Incoming investigation squad redirected 13297 | -5/Factory | Lost 3 allies 13358 | -5/Factory | Destroyed 7 combat bots 13394 | -5/Factory | Identified exit to Upper Caves 13419 | -5/Factory | Joined by Warlord Muscle squad 13495 | -5/Factory | Garrison activated, responded to threat 13508 | -5/Factory | Lost 3 parts (1n2w) 13599 | -5/Factory | First assault squad dispatched 13625 | -5/Factory | Entered Upper Caves 13646 | -5/Upper Caves | Found DCF Scrap (15 items) 13811 | -5/Upper Caves | Learned location of Armory (-4) 13811 | -5/Upper Caves | Learned Extension emergency access door positions 13811 | -5/Upper Caves | Learned Extension terminal intel 13923 | -5/Upper Caves | Identified exit to Upper Caves 14008 | -5/Upper Caves | Attacked by a delusional Derelict stockpiling parts 14084 | -5/Upper Caves | Entered another Upper Caves area 14085 | -5/Upper Caves | Identified exit to Factory 14403 | -5/Upper Caves | Discovered new exit (range 14) 14488 | -5/Upper Caves | Encountered a Warlord checkpoint 14630 | -5/Upper Caves | Entered Warlord 14910 | -5/Warlord | Visited the Vortex Lab 14924 | -5/Warlord | Warlord's base attacked by MAIN.C 14928 | -5/Warlord | Met EX-DEC 14939 | -5/Warlord | Found Prototype Energy Gun 14939 | -5/Warlord | Identified Vortex Shotgun 14948 | -5/Warlord | Found Prototype Energy Cannon 14960 | -5/Warlord | Found Prototype Energy Gun 14961 | -5/Warlord | Identified Vortex Rifle 14965 | -5/Warlord | Found Vortex Rifle 14973 | -5/Warlord | Found Vortex Shotgun 15274 | -5/Warlord | Warlord forces counterattacked 15374 | -5/Warlord | Met Warlord 15388 | -5/Warlord | Opened Warlord's prototype stash 15394 | -5/Warlord | Found Prototype Reactor 15394 | -5/Warlord | Identified Vortex Chain Reactor 15402 | -5/Warlord | Found Prototype Device 15402 | -5/Warlord | Identified Exp. Phase Shifter 15413 | -5/Warlord | Found Prototype Device 15413 | -5/Warlord | Identified Thermal Barrier 15566 | -5/Warlord | Spotted Executioner 15568 | -5/Warlord | Destroyed Executioner 15571 | -5/Warlord | Spotted Executioner 15599 | -5/Warlord | Warlord base infiltrated, sounded retreat 15806 | -5/Warlord | Spotted Executioner 15812 | -5/Warlord | Destroyed Executioner 15841 | -5/Warlord | Lost 4 allies 15860 | -5/Warlord | Spotted Striker 15911 | -5/Warlord | Lost 3 allies 15993 | -5/Warlord | Discovered new exit (range 10) 16014 | -5/Warlord | Entered Proximity Caves 16186 | -4/Proximity Caves | Spotted B-86 Titan 16190 | -4/Proximity Caves | Destroyed B-86 Titan 16395 | -4/Proximity Caves | Entered Factory 16395 | -4/Factory | Evolved 2 slots: Weapon x2 16420 | -4/Factory | Identified BFG-9k Vortex Edition 16595 | -4/Factory | Repaired Cld. Pulse Rifle? 16626 | -4/Factory | Repaired Imp. Heavy Armor Plating? 16650 | -4/Factory | Found Quantum Capacitor 16721 | -4/Factory | Build established: Scavenger-Executioner 17263 | -4/Factory | Destroyed 8 combat bots 17499 | -4/Factory | Spotted B-86 Titan 17512 | -4/Factory | Destroyed B-86 Titan 17645 | -4/Factory | First assault squad dispatched 17746 | -4/Factory | System corruption reached 10% 17896 | -4/Factory | Lost 20 parts (3p2n8u7w) 17940 | -4/Factory | Core integrity fell below 50% 17959 | -4/Factory | Released all parts (3) 17961 | -4/Factory | Core integrity fell below 20% 17988 | -4/Factory | Lost 5 parts (2n2u1w) 17998 | -4/Factory | Discovered new exit (range 8) 18004 | -4/Factory | Identified exit to Upper Caves 18008 | -4/Factory | Entered Upper Caves 18116 | -4/Upper Caves | Build established: Mutant 18142 | -4/Upper Caves | Spotted B-86 Titan 18208 | -4/Upper Caves | Discovered new exit (range 9) 18217 | -4/Upper Caves | Identified exit to Upper Caves 18218 | -4/Upper Caves | Entered another Upper Caves area 18575 | -4/Upper Caves | Build established: Derelict-Executioner 18685 | -4/Upper Caves | Discovered new exit (range 13) 18711 | -4/Upper Caves | Identified exit to Zhirov 18714 | -4/Upper Caves | Entered Zhirov 18714 | -4/Zhirov | Discovered new exit (range 3) 18719 | -4/Zhirov | Identified exit to Proximity Caves 18752 | -4/Zhirov | Met Zhirov 18786 | -4/Zhirov | Learned location of Quarantine (-2) 18786 | -4/Zhirov | Learned location of Testing (-3) 18786 | -4/Zhirov | Learned location of Command (-1) 18803 | -4/Zhirov | Zhirov requested help retrieving the SGEMP Prototype 18830 | -4/Zhirov | Found Alien Artifact 18830 | -4/Zhirov | Identified Integrated Reactor 18830 | -4/Zhirov | Installed Integrated Reactor, increased core energy generation (+10) 18852 | -4/Zhirov | Found Alien Artifact 18983 | -4/Zhirov | Entered Proximity Caves 18986 | -3/Proximity Caves | Spotter reported a threat 19132 | -3/Proximity Caves | Attracted the attention of an 0b10 outpost 19150 | -3/Proximity Caves | Identified Transdimensional Reconstructor 19150 | -3/Proximity Caves | Warped through subspace 19179 | -3/Proximity Caves | Spotter reported a threat 19186 | -3/Proximity Caves | Destroyed by G-67 Veteran with Field Laser Last Messages --------------- Dropped Lyr. Medium Armor Plating. Dropped Hvy. Antimatter Reactor. Acquired Hvy. Antimatter Reactor. Identified Transdimensional Reconstructor. Warped through subspace. C-30 ARC bursts open, deploying its payload. P-80 Master unfolds itself. N-01 Spotter is scanning... ALERT: Unidentified potential threat approaching Complex 0b10. KZCQ45 F< XXWKF IGT1 C-30 ARC bursts open, deploying its payload. G-73 Enforcer unfolds itself. L-61 Swordsman unfolds itself. G-67 Veteran unfolds itself. E-15 Imp unfolds itself. Lyr. Medium Armor Plating blown off. Cld. Gravmag System blown off. E-15 Imp destroyed. Acquired 113 matter. Map ----- +----------------------------------------------------+ | ?????????????????????????????????????????????????? | | ?????????????????????????????????????????????????? | | ?????????????????????????????????????????????????? | | ?????????????????????????????????????????????????? | | ?????????????????????????????????????????????????? | | ?????????????????????????????????????????????????? | | ?????????????????????????????????????????????????? | | ?????????????????????????????????????????????????? | | ?????????????????????????????????????????????????? | | ?????????????????????????????????????????????????? | | ?????????????????????????????????????????????????? | | ?????????????????????????????????????????????????? | | ????????##???????????????????????????????????????? | | ??????## ##????????##???????????????????????????? | | ?????## ??????# ???????????????????????????? | | ????## ??????# #??????????????????????????? | | ????# ??????# ??????????????????????????? | | ????# #??????# ??????????????????????????? | | ?##?# #??????? ??????????????????????????? | | ?# ## $ #???????# ??????????????????????????? | | ## ##??????# ??????????????????????????? | | ## #??????# ??????????????????????????? | | # #???????# ####??????????????????????? | | ## ##??????# ##?????????????????????? | | ## ####???# #?????????????????????? | | #?# ##??# @#??????????????????????? | | ### ## ##### #??????????????????????? | | ## ### ## g #??????????????????????? | | ###### ## g##??????????????????????? | | ##????## ###gn#???????????????????????? | | #########??????## ###sl#???????????????????????? | | #???????????????# ## s!#???????????????????????? | | #???????????????# ##=% #???????????????????????? | | ?????????????## s #???????????????????????? | | ????????????# #???????????????????????? | | ??????????# #???????????????????????? | | #### ?????????## #???????????????????????? | | ???? ?????????# #???????????????????????? | | ????? #???????## ##???????????????????????? | | ?????? ? ## ##???????????????????????? | | ??????? ##??????????????????????? | | ???????? #??????????????????????? | | ???????? ## ##??????????????????????? | | ????????? ?##########???????????????????????? | | ???????? ???????????????????????????????????? | | ????????? ????????????????????????????????????? | | ????????? ?????????????????????????????????????? | | ?????????# ??????????????????????????????????????? | | ?????????????????????????????????????????????????? | | ?????????????????????????????????????????????????? | +----------------------------------------------------+ Best States ------------- Heat Dissipation 101 Energy Generation 55 Energy Capacity 700 Matter Stores 300 Matter Capacity 300 Sight Range 20 Terrain Scan Range 24 Terrain Scan Density 10 ECM Strength 2 Jamming Range 14 Base Temperature (-) 200 Armor Coverage 900 Resistance: KI 30 Resistance: TH 50 Resistance: EM 20 Core Shielding 40 Propulsion Shielding 66 Weapon Cycling 20 Phase Shifting 20 Evasion (%) 67 Melee Accuracy 5 Core Analysis 6 Matter Filtering 30 Energy Filtering 30 Particle Charging 20 Offensive Hacking 12 Trap Extractor Capacity 6 Item Schematics ----------------- Airjet | -8/Materials | Extracted Adv. Weight Redist. System | -8/Materials | Extracted Core Shielding | -8/Materials | Extracted Imp. Hardlight Generator | -8/Storage | Hacked Combat Drone Bay | -7/Data Miner | Free Lgt. Regenerative Plating | -7/Data Miner | Free Biomechanical Wings | -7/Data Miner | Free Gravity Neutralizer | -7/Data Miner | Free Imp. Heavy Machine Gun | -7/Data Miner | Free Nuclear Pulse Array | -7/Data Miner | Free Imp. Kinecellerator | -7/Data Miner | Free Variable Charge Gun | -7/Data Miner | Free Nuclear Pulse Thruster | -7/Data Miner | Free Neutrino Core | -7/Data Miner | Free Adv. Thermal Shield | -7/Data Miner | Free Adv. Reaction Control System | -7/Data Miner | Free Assault Drone Bay | -4/Zhirov | Free Exp. Heat Sink | -4/Zhirov | Free Exp. Optical Array | -4/Zhirov | Free Imp. Arc Thrower | -4/Zhirov | Free Robot Schematics ------------------ H-55 Commando | -7/Data Miner | Free P-60 Hacker | -7/Data Miner | Free O-24 Administrator | -7/Data Miner | Free B-48 Gladiator | -7/Data Miner | Free Y-54 Guardian | -7/Data Miner | Free S-27 Virus | -7/Data Miner | Free R-10 Processor | -7/Data Miner | Free Fabricated ------------ Nothing Alien Tech Used ----------------- Integrated Reactor Transdimensional Reconstructor Achievements -------------- Collateral Damage Challenges ------------ None Game ------ Seed WarpCarbideLegs Manual? 0 Play Time 04:07:34 Cumulative 193.5 hours Start 2024.09.03 @ 23:11:14 End 2024.09.06 @ 01:54:05 Sessions 9 Manual Loads 0 Difficulty Rogue Special Mode None Game No. 164 Rogue 155 Adventurer 9 Explorer 0 Win Type - Total 0 Types 0/0/0/0/0/0/0/0/0 Lore% 69 Gallery% 69 Achievement% 55 Wizard Run 0 Options --------- Layout 1 ASCII 0 Keyboard 0 Movement Mouse Keybinds 0 Fullscreen 1 Font 24/Smallcaps Map View 50x35 Zoom Use 0% Tactical HUD 0 Map Filters NONE Filters NONE Steam 1 RUN: 736c045a-d900-4677-b771-888acd2dd3bd